bitfinex/quotes_BTCUSD_20251016
["timestamp","ask_amount","ask_price","bid_price","bid_amount"]
[1760602963879,6.35707243,110870.0,110860.0,0.00332843]
[1760602964061,6.32993933,110870.0,110860.0,0.00332843]
[1760602964273,6.26515838,110870.0,110860.0,0.00332843]
[1760602965383,6.31363774,110870.0,110860.0,0.00332843]
[1760602965603,6.26515838,110870.0,110860.0,0.00332843]
[1760602966267,6.31363284,110870.0,110860.0,0.00332843]
[1760602967851,6.30524015,110870.0,110860.0,0.00332843]
[1760602968496,6.28845476,110870.0,110860.0,0.00332843]
[1760602968720,6.29686935,110870.0,110860.0,0.00332843]
[1760602968950,6.28845476,110870.0,110860.0,0.00332843]
[1760602969375,6.31369766,110870.0,110860.0,0.00332843]
[1760602969594,6.28845476,110870.0,110860.0,0.00332843]
[1760602970458,6.31370142,110870.0,110860.0,0.00332843]
[1760602970671,5.90954749,110870.0,110860.0,0.00332843]
[1760602970881,6.29687031,110870.0,110860.0,0.00332843]
[1760602971091,6.28845476,110870.0,110860.0,0.00332843]
[1760602971306,6.31370162,110870.0,110860.0,0.00332843]
[1760602972637,6.22401954,110870.0,110860.0,0.00332843]
[1760602973305,6.25633742,110870.0,110860.0,0.00332843]
[1760602973528,6.2563386,110870.0,110860.0,0.00332843]
[1760602977350,6.20786414,110870.0,110860.0,0.00332843]
[1760602980047,6.20786595,110870.0,110860.0,0.00332843]
[1760602980520,6.29754803,110870.0,110860.0,0.00332843]
[1760602980969,5.91022521,110870.0,110860.0,0.00332843]
[1760602981213,6.29754803,110870.0,110860.0,0.00332843]
[1760602984215,6.32181676,110870.0,110860.0,0.00332843]
[1760602988414,6.29754803,110870.0,110860.0,0.00332843]
[1760602991141,5.95754803,110870.0,110860.0,0.00332843]
[1760602991347,5.94952954,110870.0,110860.0,0.00332843]
[1760602991559,5.75516116,110870.0,110860.0,0.00332843]
[1760602991765,5.66547908,110870.0,110860.0,0.00332843]
[1760602992389,5.27815626,110870.0,110860.0,0.00332843]
[1760602992596,5.66547908,110870.0,110860.0,0.00332843]
[1760602993264,6.00547908,110870.0,110860.0,0.00332843]
[1760602994105,6.09516116,110870.0,110860.0,0.00332843]
[1760602994935,6.00547908,110870.0,110860.0,0.00332843]
[1760602996100,5.61815626,110870.0,110860.0,0.00332843]
[1760602996313,6.00547908,110870.0,110860.0,0.00332843]
[1760602996704,6.00547908,110870.0,110860.0,0.18373615]
[1760602996705,5.09776482,110870.0,110860.0,0.18373615]
[1760602996928,0.04882117,110870.0,110860.0,0.18373615]
[1760602997106,0.02357132,110870.0,110860.0,0.18373615]
[1760602997307,0.02357132,110870.0,110860.0,0.66074909]
[1760602997532,0.022,110870.0,110860.0,0.66074909]
[1760602997781,0.021,110870.0,110860.0,0.68787279]
[1760602998409,0.02,110870.0,110860.0,0.68787279]
[1760602999209,0.02,110870.0,110860.0,0.72480706]
[1760603000199,0.02,110870.0,110860.0,0.30054997]
[1760603000401,0.02,110870.0,110860.0,0.68887279]
[1760603001016,0.02,110870.0,110860.0,0.68987279]
[1760603010607,0.02,110870.0,110860.0,0.30254997]
[1760603010816,0.02,110870.0,110860.0,0.68987279]
[1760603011497,0.02,110870.0,110860.0,1.07690891]
[1760603015160,0.02,110870.0,110860.0,1.22510891]
[1760603016948,0.40717947,110870.0,110860.0,0.30254997]
[1760603017167,0.40717947,110870.0,110860.0,0.03245213]
[1760603017168,5.40717947,110870.0,110860.0,0.03245213]
[1760603017397,6.12078575,110870.0,110860.0,0.00532843]
[1760603017642,5.68642681,110870.0,110860.0,0.00532843]
[1760603017895,6.48010494,110870.0,110860.0,0.00532843]
[1760603018132,6.48010494,110870.0,110860.0,0.00432843]
[1760603019040,6.4800984,110870.0,110860.0,0.00432843]
[1760603019272,6.48010052,110870.0,110860.0,0.00332843]
[1760603019713,6.48110052,110870.0,110860.0,0.00332843]
[1760603020133,6.40166463,110870.0,110860.0,0.00332843]
[1760603020338,5.71773172,110870.0,110860.0,0.00332843]
[1760603020556,6.02969446,110870.0,110860.0,0.00332843]
[1760603020776,5.84930302,110870.0,110860.0,0.00332843]
[1760603021411,6.0129268,110870.0,110860.0,0.00332843]
[1760603022296,5.83253536,110870.0,110860.0,0.00332843]
[1760603022725,5.84931025,110870.0,110860.0,0.00332843]
[1760603024949,6.02970169,110870.0,110860.0,0.00332843]
[1760603026404,5.83211763,110870.0,110860.0,0.00332843]
[1760603026610,5.63987429,110870.0,110860.0,0.00332843]
[1760603029354,5.45949037,110870.0,110860.0,0.00332843]
[1760603030008,5.63988181,110870.0,110860.0,0.00332843]
[1760603034019,5.25270234,110870.0,110860.0,0.00332843]
[1760603034249,5.63988181,110870.0,110860.0,0.00332843]
[1760603036364,5.97988181,110870.0,110860.0,0.00332843]
[1760603036592,6.36706128,110870.0,110860.0,0.00332843]
[1760603040532,6.37545477,110870.0,110860.0,0.00332843]
[1760603040973,6.38959669,110870.0,110860.0,0.00332843]
[1760603041398,6.41375507,110870.0,110860.0,0.00332843]
[1760603043026,6.41378216,110870.0,110860.0,0.00332843]
[1760603043474,6.50346424,110870.0,110860.0,0.00332843]
[1760603045335,6.53578212,110870.0,110860.0,0.00332843]
[1760603046124,6.51162374,110870.0,110860.0,0.00332843]
[1760603046341,6.5600982,110870.0,110860.0,0.00332843]
[1760603046563,6.52778032,110870.0,110860.0,0.00332843]
[1760603047641,6.56473387,110870.0,110860.0,0.00332843]
[1760603048292,6.55059195,110870.0,110860.0,0.00332843]
[1760603048982,6.54982068,110870.0,110860.0,0.00332843]
[1760603049815,6.93542885,110870.0,110860.0,0.00332843]
[1760603050305,6.94106891,110870.0,110860.0,0.00332843]
[1760603051207,6.89464754,110870.0,110860.0,0.00332843]
[1760603051910,6.89368887,110870.0,110860.0,0.00332843]
[1760603052142,6.89268887,110870.0,110860.0,0.00332843]
[1760603052368,6.89368887,110870.0,110860.0,0.00332843]
[1760603052857,6.91040364,110870.0,110860.0,0.00332843]
[1760603053991,6.90940364,110870.0,110860.0,0.00332843]
[1760603054446,6.95788063,110870.0,110860.0,0.00332843]
[1760603054671,6.95888063,110870.0,110860.0,0.00332843]
[1760603055614,6.89626034,110870.0,110860.0,0.00332843]
[1760603058950,6.91040365,110870.0,110860.0,0.00332843]
[1760603060165,6.9027105,110870.0,110860.0,0.00332843]
[1760603061096,6.58428139,110870.0,110860.0,0.00332843]
[1760603061316,6.63271262,110870.0,110860.0,0.00332843]
[1760603061541,6.63721331,110870.0,110860.0,0.00332843]
[1760603063154,6.56846295,110870.0,110860.0,0.00332843]
[1760603063590,6.56845412,110870.0,110860.0,0.00332843]
[1760603064298,6.47877204,110870.0,110860.0,0.00332843]
[1760603064518,6.51106674,110870.0,110860.0,0.00332843]
[1760603064761,6.22260684,110870.0,110860.0,0.00332843]
[1760603064971,6.21262605,110870.0,110860.0,0.00332843]
[1760603065259,6.22103592,110870.0,110860.0,0.00332843]
[1760603065756,6.29657469,110870.0,110860.0,0.00332843]
[1760603066008,6.32886939,110870.0,110860.0,0.00332843]
[1760603066259,6.29657469,110870.0,110860.0,0.00332843]
[1760603066518,6.20689261,110870.0,110860.0,0.00332843]
[1760603067538,6.20846402,110870.0,110860.0,0.00332843]
[1760603067800,6.17228174,110870.0,110860.0,0.00332843]
[1760603068674,6.17071033,110870.0,110860.0,0.00332843]
[1760603069108,6.26039241,110870.0,110860.0,0.00332843]
[1760603069783,6.01774554,110870.0,110860.0,0.00332843]
[1760603070000,6.03774554,110870.0,110860.0,0.00332843]
[1760603071431,6.03931695,110870.0,110860.0,0.00332843]
[1760603071662,6.05345944,110870.0,110860.0,0.00332843]
[1760603073633,5.66668065,110870.0,110860.0,0.00332843]
[1760603079732,5.67475432,110870.0,110860.0,0.00332843]
[1760603083933,5.67476955,110870.0,110860.0,0.00332843]
[1760603084585,5.70190368,110870.0,110860.0,0.00332843]
[1760603084792,5.4512147,110870.0,110860.0,0.00332843]
[1760603085002,5.63160614,110870.0,110860.0,0.00332843]
[1760603086101,5.63160631,110870.0,110860.0,0.00332843]
[1760603087234,6.06339919,110870.0,110860.0,0.00332843]
[1760603091430,6.04658054,110870.0,110860.0,0.00332843]
[1760603091607,6.02244137,110870.0,110860.0,0.00332843]
[1760603091809,6.04771811,110870.0,110860.0,0.00332843]
[1760603091950,6.03929253,110870.0,110860.0,0.00332843]
[1760603092376,5.63486122,110870.0,110860.0,0.00332843]
[1760603092803,5.54517914,110870.0,110860.0,0.00332843]
[1760603093626,5.57046106,110870.0,110860.0,0.00332843]
[1760603094101,5.38604831,110870.0,110860.0,0.00332843]
[1760603094496,5.72604831,110870.0,110860.0,0.00332843]
[1760603094991,5.74218484,110870.0,110860.0,0.00332843]
[1760603095423,5.83186692,110870.0,110860.0,0.00332843]
[1760603096091,5.86423319,110870.0,110860.0,0.00332843]
[1760603096335,5.87994751,110870.0,110860.0,0.00332843]
[1760603097638,5.53994751,110870.0,110860.0,0.00332843]
[1760603099007,5.87994751,110870.0,110860.0,0.00332843]
[1760603102862,5.87994751,110870.0,110860.0,0.00273427]
[1760603105934,6.26752766,110870.0,110860.0,0.00273427]
[1760603106150,5.8670027,110870.0,110860.0,0.00273427]
[1760603108510,6.25458285,110870.0,110860.0,0.00273427]
[1760603109550,6.23772837,110870.0,110860.0,0.00273427]
[1760603109754,6.25458709,110870.0,110860.0,0.00273427]
[1760603111473,5.86700694,110870.0,110860.0,0.00273427]
[1760603111699,6.23772837,110870.0,110860.0,0.00273427]
[1760603111925,6.28694551,110870.0,110860.0,0.00273427]
[1760603112153,6.25458535,110870.0,110860.0,0.00273427]
[1760603112384,6.20665603,110870.0,110860.0,0.00273427]
[1760603113557,6.20665603,110870.0,110860.0,1e-08]
[1760603113802,6.36833783,110870.0,110820.0,0.02721343]
[1760603114040,5.63918813,110830.0,110820.0,0.02721343]
[1760603114293,5.92167751,110830.0,110820.0,7.341e-05]
[1760603114744,5.94882239,110830.0,110820.0,7.341e-05]
[1760603115183,5.94887236,110830.0,110820.0,7.341e-05]
[1760603115430,5.98174647,110830.0,110820.0,7.341e-05]
[1760603115870,5.97311602,110830.0,110820.0,7.341e-05]
[1760603116097,5.94987236,110830.0,110820.0,7.341e-05]
[1760603116318,5.97410173,110830.0,110820.0,7.341e-05]
[1760603116716,5.97510173,110830.0,110820.0,7.341e-05]
[1760603116905,5.9898226,110830.0,110820.0,7.341e-05]
[1760603117106,5.9908226,110830.0,110820.0,7.341e-05]
[1760603117337,5.95844107,110830.0,110820.0,7.341e-05]
[1760603117710,5.9671679,110830.0,110820.0,7.341e-05]
[1760603118126,6.35474805,110830.0,110820.0,7.341e-05]
[1760603118351,6.34602122,110830.0,110820.0,7.341e-05]
[1760603118990,6.34444912,110830.0,110820.0,7.341e-05]
[1760603119638,6.34444912,110830.0,110820.0,0.00243399]
[1760603121495,6.3460212,110830.0,110820.0,0.00243399]
[1760603124158,5.83311887,110830.0,110820.0,0.00243399]
[1760603124863,5.833118,110830.0,110820.0,0.00243399]
[1760603125721,5.61647917,110830.0,110820.0,0.18290682]
[1760603125865,5.2522498,110830.0,110820.0,0.18290682]
[1760603126106,5.5922498,110830.0,110820.0,0.18290682]
[1760603126336,5.2522498,110830.0,110820.0,0.21005001]
[1760603126561,5.57610103,110830.0,110820.0,0.21005001]
[1760603126780,5.23710103,110830.0,110820.0,0.21005001]
[1760603127032,5.23552895,110830.0,110820.0,0.21005001]
[1760603127253,5.4159855,110830.0,110820.0,0.02957718]
[1760603127479,5.7559855,110830.0,110820.0,0.02957718]
[1760603127907,5.7569855,110830.0,110820.0,0.02957718]
[1760603128628,5.7569855,110830.0,110820.0,0.21005001]
[1760603128629,5.57652895,110830.0,110820.0,0.21005001]
[1760603128852,5.58102964,110830.0,110820.0,0.21005001]
[1760603129509,5.58002964,110830.0,110820.0,0.21005001]
[1760603129727,5.57903764,110830.0,110820.0,0.21005001]
[1760603130358,5.5806095,110830.0,110820.0,0.21005001]
[1760603133226,5.85074813,110830.0,110820.0,0.21005001]
[1760603135520,5.58076946,110830.0,110820.0,0.21005001]
[1760603137315,5.50674346,110830.0,110820.0,0.21005001]
[1760603137530,5.50676723,110830.0,110820.0,0.21005001]
[1760603140676,5.3394032,110830.0,110820.0,0.21005001]
[1760603141762,0.05289869,110830.0,110820.0,0.21005001]
[1760603142030,0.05291846,110830.0,110820.0,0.21005001]
[1760603142278,0.03450069,110830.0,110820.0,0.21005001]
[1760603144682,0.03607242,110830.0,110820.0,0.21005001]
[1760603146548,0.03453539,110830.0,110820.0,0.21005001]
[1760603148586,0.4222755,110830.0,110820.0,0.21005001]
[1760603152716,0.03453539,110830.0,110820.0,0.21005001]
[1760603152948,0.4222755,110830.0,110820.0,0.21005001]
[1760603154406,0.43913292,110830.0,110820.0,0.21005001]
[1760603154578,0.4222755,110830.0,110820.0,0.21005001]
[1760603155206,0.43913292,110830.0,110820.0,0.21005001]
[1760603155830,0.4222755,110830.0,110820.0,0.21005001]
[1760603159329,0.43913794,110830.0,110820.0,0.21005001]
[1760603162852,0.4222755,110830.0,110820.0,0.21005001]
[1760603163078,0.43913191,110830.0,110820.0,0.21005001]
[1760603163302,0.4222755,110830.0,110820.0,0.21005001]
[1760603163518,0.43913316,110830.0,110820.0,0.21005001]
[1760603163956,0.05139305,110830.0,110820.0,0.21005001]
[1760603164187,0.43913316,110830.0,110820.0,0.21005001]
[1760603166058,0.43913316,110830.0,110820.0,0.35825001]
[1760603167617,0.4222755,110830.0,110820.0,0.35825001]
[1760603169279,0.4391396,110830.0,110820.0,0.35825001]
[1760603173181,0.05139949,110830.0,110820.0,0.35825001]
[1760603173376,0.4391396,110830.0,110820.0,0.35825001]
[1760603174006,0.13,110830.0,110820.0,0.35825001]
[1760603174163,0.13157172,110830.0,110820.0,0.35825001]
[1760603176101,0.13157172,110830.0,110820.0,0.59779012]
[1760603181533,0.13157172,110830.0,110820.0,0.21005001]
[1760603182427,0.13157172,110830.0,110820.0,0.59779012]
[1760603184673,0.13157172,110830.0,110820.0,1.07522035]
[1760603184897,0.13157172,110830.0,110820.0,0.29974013]
[1760603185109,0.13157172,110830.0,110820.0,1.07522035]
[1760603185334,0.13,110830.0,110820.0,1.07522035]
[1760603186702,0.13,110830.0,110820.0,1.22342035]
[1760603192357,0.13,110830.0,110820.0,0.83568024]
[1760603192593,0.13,110830.0,110820.0,0.92624024]
[1760603194223,0.13,110830.0,110820.0,0.53850013]
[1760603194462,0.13,110830.0,110820.0,0.92624024]
[1760603196062,0.13,110830.0,110820.0,0.53850013]
[1760603196269,0.13,110830.0,110820.0,0.92624024]
[1760603197550,0.13,110830.0,110820.0,0.53850013]
[1760603197829,0.13,110830.0,110820.0,0.21005001]
[1760603198052,5.48635457,110830.0,110820.0,0.00243399]
[1760603198267,5.68778845,110830.0,110820.0,0.00243399]
[1760603198481,5.68621673,110830.0,110820.0,0.00243399]
[1760603200646,5.68621673,110830.0,110820.0,0.18290682]
[1760603200854,5.68621673,110830.0,110820.0,0.00243399]
[1760603201486,5.68778864,110830.0,110820.0,0.00243399]
[1760603203652,6.10072275,110830.0,110820.0,0.00243399]
[1760603204309,6.07649338,110830.0,110820.0,0.00243399]
[1760603204515,5.68889142,110830.0,110820.0,0.00243399]
[1760603204729,5.68989142,110830.0,110820.0,0.00243399]
[1760603205152,5.68974338,110830.0,110820.0,0.00243399]
[1760603205646,5.67444619,110830.0,110820.0,0.00243399]
[1760603207615,5.67442911,110830.0,110820.0,0.00243399]
[1760603209122,5.67442521,110830.0,110820.0,0.00243399]
[1760603209989,5.67442154,110830.0,110820.0,0.00243399]
[1760603211726,5.50287519,110830.0,110820.0,0.00243399]
[1760603211940,5.54287519,110830.0,110820.0,0.00243399]
[1760603212400,5.58322634,110830.0,110820.0,0.00243399]
[1760603212858,5.54287519,110830.0,110820.0,0.00243399]
[1760603214013,5.54291519,110830.0,110820.0,0.00243399]
[1760603215761,5.56802953,110820.0,110810.0,0.1797505]
[1760603216205,5.69802953,110820.0,110810.0,0.1797505]
[1760603219741,5.71480647,110820.0,110810.0,0.1797505]
[1760603219956,5.80448855,110820.0,110810.0,0.1797505]
[1760603220401,5.78771161,110820.0,110810.0,0.1797505]
[1760603220857,5.69802953,110820.0,110810.0,0.1797505]
[1760603221046,5.5175567,110820.0,110810.0,0.1797505]
[1760603221293,5.69802953,110820.0,110810.0,0.1797505]
[1760603221516,5.5175567,110820.0,110810.0,0.1803408]
[1760603221783,5.69802953,110820.0,110810.0,0.1803408]
[1760603222426,5.71481423,110820.0,110810.0,0.1803408]
[1760603222637,5.71481423,110820.0,110810.0,0.0005903]
[1760603222861,5.80449631,110820.0,110810.0,0.18107942]
[1760603223495,5.82384436,110820.0,110810.0,0.18107942]
[1760603225271,5.55368945,110820.0,110810.0,0.18107942]
[1760603225818,5.16613275,110820.0,110810.0,0.18107942]
[1760603226071,5.55368945,110820.0,110810.0,0.18107942]
[1760603226617,5.73416228,110820.0,110810.0,0.18107942]
[1760603226871,5.73416228,110820.0,110810.0,0.0005903]
[1760603227121,5.82384436,110820.0,110810.0,0.0005903]
[1760603227372,5.82384436,110820.0,110810.0,0.18107942]
[1760603227635,5.6676009,110820.0,110810.0,0.18107942]
[1760603227880,5.84807373,110820.0,110810.0,0.18107942]
[1760603229207,5.84807373,110820.0,110810.0,0.0005903]
[1760603229403,6.23563043,110820.0,110810.0,0.0005903]
[1760603230556,6.24977843,110820.0,110810.0,0.0005903]
[1760603230764,6.29058781,110820.0,110810.0,0.0005903]
[1760603233443,6.63058781,110820.0,110810.0,0.0005903]
[1760603233660,6.60635844,110820.0,110810.0,0.0005903]
[1760603235203,6.64254072,110820.0,110810.0,0.0005903]
[1760603235425,6.64458349,110820.0,110810.0,0.0005903]
[1760603235821,6.64928418,110820.0,110810.0,0.0005903]
[1760603236506,6.68163458,110820.0,110810.0,0.0005903]
[1760603239088,6.46515427,110820.0,110810.0,0.0005903]
[1760603241415,6.46615427,110820.0,110810.0,0.0005903]
[1760603241750,6.48497743,110820.0,110810.0,0.0005903]
[1760603242153,6.50090324,110820.0,110810.0,0.0005903]
[1760603243292,6.48939809,110820.0,110810.0,0.0005903]
[1760603243906,6.49719214,110820.0,110810.0,0.0005903]
[1760603244328,6.52950556,110820.0,110810.0,0.0005903]
[1760603245448,6.49243841,110820.0,110810.0,0.0005903]
[1760603250425,6.49719214,110820.0,110810.0,0.0005903]
[1760603256233,6.50908739,110820.0,110810.0,0.0005903]
[1760603256459,6.50911986,110820.0,110810.0,0.0005903]
[1760603257519,6.89806184,110820.0,110810.0,0.0005903]
[1760603258150,6.88616659,110820.0,110810.0,0.0005903]
[1760603258576,6.98129659,110820.0,110810.0,0.0005903]
[1760603261474,8.1735312,110820.0,110810.0,0.0005903]
[1760603261697,8.1735312,110820.0,110780.0,0.0004]
[1760603261698,5.3607077,110790.0,110780.0,0.0004]
[1760603261916,6.38259192,110790.0,110780.0,0.0004]
[1760603262755,6.38259192,110790.0,110780.0,0.00090088]
[1760603263267,6.38416438,110790.0,110780.0,0.00090088]
[1760603264116,6.38416438,110790.0,110780.0,0.00190088]
[1760603266617,6.36734721,110790.0,110780.0,0.00190088]
[1760603266844,6.38417751,110790.0,110780.0,0.00190088]
[1760603267493,6.84466546,110790.0,110780.0,0.00367236]
[1760603267719,6.86908396,110790.0,110780.0,0.00367236]
[1760603268012,6.82062523,110790.0,110780.0,0.00367236]
[1760603268261,7.20707123,110790.0,110770.0,0.0004]
[1760603268495,7.72503334,110770.0,110760.0,0.0004]
[1760603268732,6.85527201,110770.0,110760.0,0.00055017]
[1760603269172,6.46725355,110770.0,110760.0,0.00055017]
[1760603269620,6.49951855,110770.0,110760.0,0.00055017]
[1760603270296,6.50051855,110770.0,110760.0,0.00055017]
[1760603270783,6.50309146,110770.0,110760.0,0.00055017]
[1760603272123,6.51724769,110770.0,110760.0,0.00055017]
[1760603273408,6.58498938,110770.0,110760.0,0.00055017]
[1760603274072,6.58498938,110770.0,110760.0,0.00173152]
[1760603275215,6.51724769,110770.0,110760.0,0.00173152]
[1760603278343,6.55173495,110770.0,110760.0,0.00173152]
[1760603278564,6.48498269,110770.0,110760.0,0.00173152]
[1760603279693,6.87300115,110770.0,110760.0,0.00173152]
[1760603281825,6.88526357,110770.0,110760.0,0.00173152]
[1760603282738,6.86843327,110770.0,110760.0,0.00173152]
[1760603283169,6.93774042,110770.0,110760.0,0.00173152]
[1760603284087,6.95406984,110770.0,110760.0,0.00173152]
[1760603284554,6.95249693,110770.0,110760.0,0.00173152]
[1760603284992,6.95249693,110770.0,110750.0,0.0004]
[1760603285208,6.5730336,110760.0,110750.0,0.00053551]
[1760603285430,6.80206373,110760.0,110750.0,0.00053551]
[1760603285893,6.80206373,110760.0,110750.0,0.0011263]
[1760603286137,6.81880971,110760.0,110750.0,0.0011263]
[1760603287473,6.82038273,110760.0,110750.0,0.0011263]
[1760603288867,6.82138273,110760.0,110750.0,0.0011263]
[1760603289122,6.82238978,110760.0,110750.0,0.0011263]
[1760603289613,6.4705536,110760.0,110750.0,0.0011263]
[1760603289831,6.38087152,110760.0,110750.0,0.0011263]
[1760603294139,6.38089754,110760.0,110750.0,0.0011263]
[1760603296349,6.33267592,110760.0,110750.0,0.0011263]
[1760603297461,6.3612567,110760.0,110750.0,0.0011263]
[1760603297701,6.45093878,110760.0,110750.0,0.0011263]
[1760603298382,6.44993878,110760.0,110750.0,0.0011263]
[1760603298601,6.44893878,110760.0,110750.0,0.0011263]
[1760603299055,6.44993878,110760.0,110750.0,0.0011263]
[1760603300123,5.3607729,110750.0,110740.0,0.02756159]
[1760603300359,6.4310883,110750.0,110740.0,0.02761156]
[1760603301439,6.46340154,110750.0,110740.0,0.02761156]
[1760603302565,6.46340154,110750.0,110740.0,0.20821477]
[1760603302566,6.37371946,110750.0,110740.0,0.20821477]
[1760603302813,5.59768254,110750.0,110740.0,0.20821477]
[1760603303033,5.985701,110750.0,110740.0,0.20821477]
[1760603303265,6.78348624,110750.0,110740.0,0.02761156]
[1760603303526,6.39546778,110750.0,110740.0,0.00044997]
[1760603303784,6.49930448,110750.0,110740.0,0.00044997]
[1760603305102,6.49935395,110750.0,110740.0,0.00044997]
[1760603305815,6.49935395,110750.0,110740.0,0.00104083]
[1760603306042,6.46317167,110750.0,110740.0,0.00104083]
[1760603306477,6.46474473,110750.0,110740.0,0.00104083]
[1760603307589,6.46317167,110750.0,110740.0,0.00104083]
[1760603310248,6.88737241,110750.0,110740.0,0.00104083]
[1760603310499,6.90366858,110750.0,110740.0,0.00104083]
[1760603310725,6.51722323,110750.0,110740.0,0.00104083]
[1760603310938,6.51822323,110750.0,110740.0,0.00104083]
[1760603311377,6.43930314,110750.0,110740.0,0.00104083]
[1760603311812,6.4392959,110750.0,110740.0,0.00104083]
[1760603313348,6.48773714,110750.0,110740.0,0.00104083]
[1760603313784,6.50189509,110750.0,110740.0,0.00104083]
[1760603314219,6.25711586,110750.0,110740.0,0.00104083]
[1760603314433,6.33187185,110750.0,110740.0,0.00104083]
[1760603314880,6.29568957,110750.0,110740.0,0.00104083]
[1760603315093,6.29568957,110750.0,110740.0,0.18164404]
[1760603315311,5.51158009,110750.0,110740.0,0.00104083]
[1760603315562,5.89959679,110750.0,110740.0,0.00104083]
[1760603316212,5.89959679,110750.0,110740.0,0.19970436]
[1760603316424,5.88543884,110750.0,110740.0,0.18164404]
[1760603316849,5.88386573,110750.0,110740.0,0.18164404]
[1760603317291,5.85964588,110750.0,110740.0,0.18164404]
[1760603317716,5.94932796,110750.0,110740.0,0.00104083]
[1760603318641,5.85964588,110750.0,110740.0,0.19970436]
[1760603318860,5.85964588,110750.0,110740.0,0.18164404]
[1760603319568,5.85991014,110750.0,110740.0,0.18164404]
[1760603320719,5.85991014,110750.0,110740.0,0.20880327]
[1760603321443,5.86148314,110750.0,110740.0,0.20880327]
[1760603322308,5.68089624,110750.0,110740.0,0.20880327]
[1760603322770,5.86148314,110750.0,110740.0,0.20880327]
[1760603323022,5.68089624,110750.0,110740.0,0.20880327]
[1760603323528,5.01680296,110750.0,110740.0,0.20880327]
[1760603323762,4.98063828,110750.0,110740.0,0.20880327]
[1760603324628,4.97963828,110750.0,110740.0,0.20880327]
[1760603324850,5.17963828,110750.0,110740.0,0.20880327]
[1760603325503,4.95050228,110750.0,110740.0,0.20880327]
[1760603325934,0.33945228,110750.0,110740.0,0.20880327]
[1760603327700,0.33787928,110750.0,110740.0,0.20880327]
[1760603327931,0.726162,110750.0,110740.0,0.20880327]
[1760603328148,0.9067489,110750.0,110740.0,0.20880327]
[1760603328394,0.726162,110750.0,110740.0,0.20880327]
[1760603328615,5.60748098,110750.0,110740.0,0.20880327]
[1760603328834,5.42689408,110750.0,110740.0,0.20880327]
[1760603330855,5.42846698,110750.0,110740.0,0.20880327]
[1760603332436,5.3387849,110750.0,110740.0,0.20880327]
[1760603332891,0.33945218,110750.0,110740.0,0.20880327]
[1760603335199,0.3215729,110750.0,110740.0,0.20880327]
[1760603335869,0.3215729,110750.0,110740.0,0.29849339]
[1760603336125,0.3215729,110750.0,110740.0,0.38917339]
[1760603339554,0.3215729,110750.0,110740.0,0.29849339]
[1760603340927,0.18649595,110750.0,110740.0,0.29849339]
[1760603341601,0.18649595,110750.0,110740.0,0.68677611]
[1760603342244,5.02436334,110770.0,110760.0,0.1805706]
[1760603342454,0.19488601,110770.0,110760.0,0.1805706]
[1760603342670,0.12313391,110770.0,110760.0,0.1805706]
[1760603343096,0.12156124,110770.0,110760.0,0.20772239]
[1760603343310,5.12089396,110770.0,110760.0,0.20772239]
[1760603344179,4.73261124,110770.0,110760.0,0.20772239]
[1760603344570,4.75034736,110770.0,110760.0,0.20772239]
[1760603345250,4.75191997,110770.0,110760.0,0.20772239]
[1760603345690,0.14086997,110770.0,110760.0,0.20772239]
[1760603348563,0.24086997,110770.0,110760.0,0.20772239]
[1760603351695,0.62915269,110770.0,110760.0,0.20772239]
[1760603351904,0.24086997,110770.0,110760.0,0.20772239]
[1760603352122,0.24086997,110770.0,110760.0,0.20872239]
[1760603352548,0.62915269,110770.0,110760.0,0.20872239]
[1760603352753,0.24086997,110770.0,110760.0,0.20872239]
[1760603354099,0.62915269,110770.0,110760.0,0.20872239]
[1760603354281,0.24086997,110770.0,110760.0,0.20872239]
[1760603355468,0.62915269,110770.0,110760.0,0.20872239]
[1760603356784,0.24086997,110770.0,110760.0,0.20872239]
[1760603357212,0.62915269,110770.0,110760.0,0.20872239]
[1760603358290,5.2570124,110770.0,110760.0,0.20872239]
[1760603358505,5.34669448,110770.0,110760.0,0.20872239]
[1760603359135,5.2570124,110770.0,110760.0,0.20872239]
[1760603360231,5.27638358,110770.0,110760.0,0.20872239]
[1760603361186,5.27638358,110770.0,110760.0,0.35692239]
[1760603363456,4.88810086,110770.0,110760.0,0.35692239]
[1760603364859,0.25767968,110770.0,110760.0,0.35692239]
[1760603365741,0.23994356,110770.0,110760.0,0.35692239]
[1760603366156,0.2565293,110770.0,110760.0,0.35692239]
[1760603366380,0.23994356,110770.0,110760.0,0.35692239]
[1760603371235,0.23997703,110770.0,110760.0,0.35692239]
[1760603372148,0.23997705,110770.0,110760.0,0.35692239]
[1760603374253,0.22313385,110770.0,110760.0,0.35692239]
[1760603377763,0.61141657,110770.0,110760.0,0.35692239]
[1760603378909,0.22313385,110770.0,110760.0,0.35692239]
[1760603379545,0.61119505,110770.0,110760.0,0.35692239]
[1760603384702,0.62803738,110770.0,110760.0,0.35692239]
[1760603388763,0.62803739,110770.0,110760.0,0.35692239]
[1760603389427,5.25848911,110770.0,110760.0,0.35692239]
[1760603390077,5.2569165,110770.0,110760.0,0.35692239]
[1760603390802,5.2569165,110770.0,110760.0,0.20872239]
[1760603393443,4.8688553,110770.0,110760.0,0.20872239]
[1760603393652,5.23751478,110770.0,110760.0,0.20872239]
[1760603394793,0.60962244,110770.0,110760.0,0.20872239]
[1760603396727,0.60962244,110770.0,110760.0,0.35692239]
[1760603397829,0.22156124,110770.0,110760.0,0.35692239]
[1760603398074,0.60962244,110770.0,110760.0,0.35692239]
[1760603398277,0.48962244,110770.0,110760.0,0.35692239]
[1760603400597,0.10156124,110770.0,110760.0,0.74498359]
[1760603401370,0.10156124,110770.0,110760.0,0.35692239]
[1760603401578,0.48962244,110770.0,110760.0,0.35692239]
[1760603401787,5.11751168,110770.0,110760.0,0.35692239]
[1760603401978,4.72945048,110770.0,110760.0,0.35692239]
[1760603402225,5.11751168,110770.0,110760.0,0.35692239]
[1760603402664,5.11751209,110770.0,110760.0,0.35692239]
[1760603405872,5.38774847,110770.0,110760.0,0.35692239]
[1760603406108,5.40714958,110770.0,110760.0,0.35692239]
[1760603406396,5.2265952,110770.0,110760.0,0.35692239]
[1760603407474,5.20975471,110770.0,110760.0,0.35692239]
[1760603408558,5.20975471,110770.0,110760.0,0.20872239]
[1760603408559,4.94158528,110770.0,110760.0,0.20872239]
[1760603408768,4.8519032,110770.0,110760.0,0.20872239]
[1760603409395,4.8519032,110770.0,110760.0,0.20772239]
[1760603410011,4.86874374,110770.0,110760.0,0.20772239]
[1760603410452,0.01684054,110770.0,110760.0,0.20772239]
[1760603410668,5.22917672,110780.0,110770.0,0.1805543]
[1760603410895,5.24601779,110780.0,110770.0,0.1805543]
[1760603411121,4.85795659,110780.0,110770.0,0.1805543]
[1760603411349,5.24601779,110780.0,110770.0,0.1805543]
[1760603411568,5.22661902,110780.0,110770.0,0.20770461]
[1760603411782,4.88661902,110780.0,110770.0,0.20770461]
[1760603412436,5.27468022,110780.0,110770.0,0.20770461]
[1760603413102,4.49855782,110780.0,110770.0,0.20770461]
[1760603413328,4.88661902,110780.0,110770.0,0.20770461]
[1760603415979,4.83855782,110780.0,110770.0,0.20770461]
[1760603416190,0.37471582,110780.0,110770.0,0.20770461]